{"text_format":"3","workbook":"xlsx","n_sheets":8,"sheets":["Útmutató","Rutinszerű rendszeres","Alkalmi ismerősök","Potenciális ügyfelek","1. né.Hálózatkezelési terv","2. né. Hálózatkezelési terv","3. né. Hálózatkezelési terv","4. né. Hálózatkezelési terv"],"not_rendered":{"defined_names":7},"read":"whole","date_system":"1900"}

{"sheet":"Útmutató","index":0,"n_rows":17,"n_cols":5,"rows_kept":17,"merged":[[0,0,0,2],[1,1,1,6],[2,1,2,6],[3,1,3,6],[4,1,4,6],[5,1,5,6],[6,1,6,6],[7,1,7,6],[8,1,8,6],[9,1,9,6],[10,1,10,6],[11,1,11,6]]}
["Kapcsolatfelvétel-követő",null,null,"Útmutató"]
[null,"1. Döntse el, hogy melyik kategóriába tartozik a partnere:"]
[null,"• Rutinszerű rendszeres – azok a személyek, akikkel sűrűn, rendszeresen kapcsolatban szeretne maradni"]
[null,"• Alkalmi ismerősök – évente néhány alkalommal szeretne érintkezni velük"]
[null,"• Potenciális ügyfelek – azok a személyek/vállalatok, akiket meg szeretne őrizni, hogy felvehesse velük a kapcsolatot, amikor eljön az ideje"]
[null,"2. Nyissa meg a megfelelő munkalapfület."]
[null,"3. Adja meg az adataikat (ha új sort szeretne létrehozni egy cellában, nyomja le az Alt+Enter billentyűkombinációt Windowsban, illetve az Option+Return billentyűkombinációt Mac számítógépen)."]
[null,"Itt találja a mobilos Excel-alkalmazásokra vonatkozó új sorutasításokat."]
[null,"4. A Nyomon követési dátum oszlopban törölje a minta dátumot/képletet, adja meg, hogy mikor szeretne kapcsolatba lépni velük, \nés nyomja le az Entert."]
[null,"5. A Nyomon követési dátum oszlop pirosan jelenik meg, ha a dátum nagyon közeli, sárga, amikor közeledik, és \nzöld, ha addig még sok ideje van."]
[null,"6. A nyomon követési dátum közeledtével a szín ennek megfelelően változik."]
[null,"7. Miután felvette a kapcsolatot a partnerével, írja be az IGEN lehetőséget a Kész? oszlopba. A dátum szürkére változik. "]
[null,"8. Ha ismét fel szeretné venni velük a kapcsolatot, cserélje az IGEN értéket NEM értékre, és írjon be egy új Nyomon követési dátumot."]
[null,null,"Piros","Sárga","Zöld"]
[null,"Rutinszerű rendszeres","1–3 nap múlva","4–7 nap múlva","Több mint 8–14 nap múlva"]
[null,"Alkalmi ismerősök","1–7 nap múlva","8–45 nap múlva","Több mint 46–90 nap múlva"]
[null,"Potenciális ügyfelek","1–14 nap múlva","15–60 nap múlva","Több mint 60–120 nap múlva"]

{"sheet":"Rutinszerű rendszeres","index":1,"n_rows":7,"n_cols":8,"rows_kept":7,"merged":[[0,0,0,2]]}
["Kapcsolatfelvétel-követő",null,null,"Rutinszerű rendszeres"]
[]
["Név","Vállalat","Kapcsolattartási adatok","Ahol találkoztunk","Jegyzetek","Nyomon követési dátum","Kész","Jegyzetek a beszélgetésből"]
["Garth erőd","Adventure Works","Projektmenedzser\ngarth@adventure-works.com\n(234) 555-0134\nadventure-works.com\nlinkedin.com/in/garth-fort","Kereskedelmi műsor 2010","Kérdezzen a lányáról, Tímeáról, illetve az átalakításról. Nem kedveli a nagy csoportokat és a fűszeres ételt.",{"$f":"TODAY()+8","v":"2021-07-20"},"NEM"]
["Név","Cég neve","Beosztás\nE-mail-cím\nTelefonszám\nWebhely\nKözösségiprofil-hivatkozások\n","Helyszín","Helyezzen el minden olyan jegyzetet, amire emlékezni szeretne erről a személyről; hol találkozott vele, miről beszéltek, mit szeretne felhozni, amikor legközelebb beszélnek stb.",{"$f":"TODAY()-3","v":"2021-07-09"},"IGEN"]
["Név","Cég neve","Beosztás\nE-mail-cím\nTelefonszám\nWebhely\nKözösségiprofil-hivatkozások\n","Helyszín","Helyezzen el minden olyan jegyzetet, amire emlékezni szeretne erről a személyről; hol találkozott vele, miről beszéltek, mit szeretne felhozni, amikor legközelebb beszélnek stb.",{"$f":"TODAY()+-3","v":"2021-07-09"},"NEM"]
["Név","Cég neve","Beosztás\nE-mail-cím\nTelefonszám\nWebhely\nKözösségiprofil-hivatkozások\n","Helyszín","Helyezzen el minden olyan jegyzetet, amire emlékezni szeretne erről a személyről; hol találkozott vele, miről beszéltek, mit szeretne felhozni, amikor legközelebb beszélnek stb.",{"$f":"TODAY()+6","v":"2021-07-18"},"NEM"]

{"sheet":"Alkalmi ismerősök","index":2,"n_rows":7,"n_cols":8,"rows_kept":7,"merged":[[0,0,0,2]]}
["Kapcsolatfelvétel-követő",null,null,"Alkalmi ismerősök"]
[]
["Név","Vállalat","Kapcsolattartási adatok","Ahol találkoztunk","Jegyzetek","Nyomon követési dátum","Kész","Jegyzetek a beszélgetésből"]
["Garth erőd","Adventure Works","Erőforrás-kezelő\ngarth@adventure-works.com\n(434) 555-0123\nwww.adventure-works.com\nlinkedin.com/in/garth-fort","Nyaralás Vermontban, 2016-ban","A munkaerő-felvételhez és a marketinges kérdésekhez egyaránt hasznos",{"$f":"TODAY()+90","v":"2021-10-10"},"NEM"]
["Név","Cég neve","Beosztás\nE-mail-cím\nTelefonszám\nWebhely\nKözösségiprofil-hivatkozások\n","Helyszín","Helyezzen el minden olyan jegyzetet, amire emlékezni szeretne erről a személyről; hol találkozott vele, miről beszéltek, mit szeretne felhozni, amikor legközelebb beszélnek stb.",{"$f":"TODAY()-3","v":"2021-07-09"},"IGEN"]
["Név","Cég neve","Beosztás\nE-mail-cím\nTelefonszám\nWebhely\nKözösségiprofil-hivatkozások\n","Helyszín","Helyezzen el minden olyan jegyzetet, amire emlékezni szeretne erről a személyről; hol találkozott vele, miről beszéltek, mit szeretne felhozni, amikor legközelebb beszélnek stb.",{"$f":"TODAY()+-3","v":"2021-07-09"},"NEM"]
["Név","Cég neve","Beosztás\nE-mail-cím\nTelefonszám\nWebhely\nKözösségiprofil-hivatkozások\n","Helyszín","Helyezzen el minden olyan jegyzetet, amire emlékezni szeretne erről a személyről; hol találkozott vele, miről beszéltek, mit szeretne felhozni, amikor legközelebb beszélnek stb.",{"$f":"TODAY()+40","v":"2021-08-21"},"NEM"]

{"sheet":"Potenciális ügyfelek","index":3,"n_rows":7,"n_cols":8,"rows_kept":7,"merged":[[0,0,0,2]]}
["Kapcsolatfelvétel-követő",null,null,"Potenciális ügyfelek"]
[]
["Név","Vállalat","Kapcsolattartási adatok","Ahol találkoztunk","Jegyzetek","Nyomon követési dátum","Kész","Jegyzetek a beszélgetésből"]
["Garth erőd","Szabadúszó","Tervező\nvalaki@pelda.com\n425-555-0123\npelda.com\nlinkedin.com/in/garth-fort","A fiunk diplomaosztója 2016-ban","Frissen végzett - nagyon képzett. A jövőbeli ügyfelek számára hasznos lehet.",{"$f":"TODAY()+89","v":"2021-10-09"},"NEM"]
["Név","Cég neve","Beosztás\nE-mail-cím\nTelefonszám\nWebhely\nKözösségiprofil-hivatkozások\n","Helyszín","Helyezzen el minden olyan jegyzetet, amire emlékezni szeretne erről a személyről; hol találkozott vele, miről beszéltek, mit szeretne felhozni, amikor legközelebb beszélnek stb.",{"$f":"TODAY()-3","v":"2021-07-09"},"IGEN"]
["Név","Cég neve","Beosztás\nE-mail-cím\nTelefonszám\nWebhely\nKözösségiprofil-hivatkozások\n","Helyszín","Helyezzen el minden olyan jegyzetet, amire emlékezni szeretne erről a személyről; hol találkozott vele, miről beszéltek, mit szeretne felhozni, amikor legközelebb beszélnek stb.",{"$f":"TODAY()+-3","v":"2021-07-09"},"NEM"]
["Név","Cég neve","Beosztás\nE-mail-cím\nTelefonszám\nWebhely\nKözösségiprofil-hivatkozások\n","Helyszín","Helyezzen el minden olyan jegyzetet, amire emlékezni szeretne erről a személyről; hol találkozott vele, miről beszéltek, mit szeretne felhozni, amikor legközelebb beszélnek stb.",{"$f":"TODAY()+30","v":"2021-08-11"},"NEM"]

{"sheet":"1. né.Hálózatkezelési terv","index":4,"n_rows":20,"n_cols":6,"rows_kept":20,"merged":[[0,0,0,3],[2,0,2,3],[4,0,4,3],[14,5,17,5],[18,0,18,3]]}
["Hálózatbővítési terv"]
["Útmutató"]
["Írja le, hogyan tervezi bővíteni a hálózatot ebben a negyedévben (például több telefonhívás kezdeményezése, több utazás stb.). Ezután minden alkalommal, amikor új partnert kap, módosítsa a Tényleges névjegyek számát, hogy nyomon követhesse, és lássa, milyen közel jár a célhoz."]
[]
["Hogyan tervezem bővíteni a hálózatomat ebben a negyedévben?"]
["1. További telefonhívások kezdeményezése"]
["2. Több utazás"]
[]
[]
[]
[]
[]
[]
["Negyedéves kapcsolattartási cél","Határidő","Tényleges elvégzett negyedéves kapcsolatfelvételek","Eredmények"]
[20,{"$f":"TODAY()","v":"2021-07-12"},12,{"$f":"IF(tblGoals[[#This Row],[Negyedéves kapcsolattartási cél]]>0,tblGoals[[#This Row],[Tényleges elvégzett negyedéves kapcsolatfelvételek]]/tblGoals[[#This Row],[Negyedéves kapcsolattartási cél]],\"\")","v":{"v":0.6,"d":"60%"}},null,"0% - 25%\n26% - 50%\n51% - 75%\n76% - 100%\n\nA szín módosul az elért százalékos érték alapján"]
[{"$nulls":3},{"$f":"IF(tblGoals[[#This Row],[Negyedéves kapcsolattartási cél]]>0,tblGoals[[#This Row],[Tényleges elvégzett negyedéves kapcsolatfelvételek]]/tblGoals[[#This Row],[Negyedéves kapcsolattartási cél]],\"\")","v":""}]
[{"$nulls":3},{"$f":"IF(tblGoals[[#This Row],[Negyedéves kapcsolattartási cél]]>0,tblGoals[[#This Row],[Tényleges elvégzett negyedéves kapcsolatfelvételek]]/tblGoals[[#This Row],[Negyedéves kapcsolattartási cél]],\"\")","v":""}]
[]
["Visszajelzés az eredményre / Fejlesztésre vonatkozó megjegyzések"]
["Közel kerültünk. Próbáljon inkább ebédidőben telefonálni."]

{"sheet":"2. né. Hálózatkezelési terv","index":5,"n_rows":20,"n_cols":6,"rows_kept":20,"merged":[[0,0,0,3],[2,0,2,3],[4,0,4,3],[14,5,17,5],[18,0,18,3]]}
["Hálózatbővítési terv"]
["Útmutató"]
["Írja le, hogyan tervezi bővíteni a hálózatot ebben a negyedévben (például több telefonhívás kezdeményezése, több utazás stb.). Ezután minden alkalommal, amikor új partnert kap, módosítsa a Tényleges névjegyek számát, hogy nyomon követhesse, és lássa, milyen közel jár a célhoz."]
[]
["Hogyan tervezem bővíteni a hálózatomat ebben a negyedévben?"]
["1. További telefonhívások kezdeményezése"]
["2. Több utazás"]
[]
[]
[]
[]
[]
[]
["Negyedéves kapcsolattartási cél","Határidő","Tényleges elvégzett negyedéves kapcsolatfelvételek","Eredmények"]
[20,{"$f":"TODAY()","v":"2021-07-12"},12,{"$f":"IF(tblGoals3[[#This Row],[Negyedéves kapcsolattartási cél]]>0,tblGoals3[[#This Row],[Tényleges elvégzett negyedéves kapcsolatfelvételek]]/tblGoals3[[#This Row],[Negyedéves kapcsolattartási cél]],\"\")","v":{"v":0.6,"d":"60%"}},null,"0% - 25%\n26% - 50%\n51% - 75%\n76% - 100%\n\nA szín módosul az elért százalékos érték alapján"]
[{"$nulls":3},{"$f":"IF(tblGoals3[[#This Row],[Negyedéves kapcsolattartási cél]]>0,tblGoals3[[#This Row],[Tényleges elvégzett negyedéves kapcsolatfelvételek]]/tblGoals3[[#This Row],[Negyedéves kapcsolattartási cél]],\"\")","v":""}]
[{"$nulls":3},{"$f":"IF(tblGoals3[[#This Row],[Negyedéves kapcsolattartási cél]]>0,tblGoals3[[#This Row],[Tényleges elvégzett negyedéves kapcsolatfelvételek]]/tblGoals3[[#This Row],[Negyedéves kapcsolattartási cél]],\"\")","v":""}]
[]
["Visszajelzés az eredményre / Fejlesztésre vonatkozó megjegyzések"]
["Közel kerültünk. Próbáljon inkább ebédidőben telefonálni."]

{"sheet":"3. né. Hálózatkezelési terv","index":6,"n_rows":20,"n_cols":6,"rows_kept":20,"merged":[[0,0,0,3],[2,0,2,3],[4,0,4,3],[14,5,17,5],[18,0,18,3]]}
["Hálózatbővítési terv"]
["Útmutató"]
["Írja le, hogyan tervezi bővíteni a hálózatot ebben a negyedévben (például több telefonhívás kezdeményezése, több utazás stb.). Ezután minden alkalommal, amikor új partnert kap, módosítsa a Tényleges névjegyek számát, hogy nyomon követhesse, és lássa, milyen közel jár a célhoz."]
[]
["Hogyan tervezem bővíteni a hálózatomat ebben a negyedévben?"]
["1. További telefonhívások kezdeményezése"]
["2. Több utazás"]
[]
[]
[]
[]
[]
[]
["Negyedéves kapcsolattartási cél","Határidő","Tényleges elvégzett negyedéves kapcsolatfelvételek","Eredmények"]
[20,{"$f":"TODAY()","v":"2021-07-12"},12,{"$f":"IF(tblGoals34[[#This Row],[Negyedéves kapcsolattartási cél]]>0,tblGoals34[[#This Row],[Tényleges elvégzett negyedéves kapcsolatfelvételek]]/tblGoals34[[#This Row],[Negyedéves kapcsolattartási cél]],\"\")","v":{"v":0.6,"d":"60%"}},null,"0% - 25%\n26% - 50%\n51% - 75%\n76% - 100%\n\nA szín módosul az elért százalékos érték alapján"]
[{"$nulls":3},{"$f":"IF(tblGoals34[[#This Row],[Negyedéves kapcsolattartási cél]]>0,tblGoals34[[#This Row],[Tényleges elvégzett negyedéves kapcsolatfelvételek]]/tblGoals34[[#This Row],[Negyedéves kapcsolattartási cél]],\"\")","v":""}]
[{"$nulls":3},{"$f":"IF(tblGoals34[[#This Row],[Negyedéves kapcsolattartási cél]]>0,tblGoals34[[#This Row],[Tényleges elvégzett negyedéves kapcsolatfelvételek]]/tblGoals34[[#This Row],[Negyedéves kapcsolattartási cél]],\"\")","v":""}]
[]
["Visszajelzés az eredményre / Fejlesztésre vonatkozó megjegyzések"]
["Közel kerültünk. Próbáljon inkább ebédidőben telefonálni."]

{"sheet":"4. né. Hálózatkezelési terv","index":7,"n_rows":20,"n_cols":6,"rows_kept":20,"merged":[[0,0,0,3],[2,0,2,3],[4,0,4,3],[14,5,17,5],[18,0,18,3]]}
["Hálózatbővítési terv"]
["Útmutató"]
["Írja le, hogyan tervezi bővíteni a hálózatot ebben a negyedévben (például több telefonhívás kezdeményezése, több utazás stb.). Ezután minden alkalommal, amikor új partnert kap, módosítsa a Tényleges névjegyek számát, hogy nyomon követhesse, és lássa, milyen közel jár a célhoz."]
[]
["Hogyan tervezem bővíteni a hálózatomat ebben a negyedévben?"]
["1. További telefonhívások kezdeményezése"]
["2. Több utazás"]
[]
[]
[]
[]
[]
[]
["Negyedéves kapcsolattartási cél","Határidő","Tényleges elvégzett negyedéves kapcsolatfelvételek","Eredmények"]
[20,{"$f":"TODAY()","v":"2021-07-12"},12,{"$f":"IF(tblGoals348[[#This Row],[Negyedéves kapcsolattartási cél]]>0,tblGoals348[[#This Row],[Tényleges elvégzett negyedéves kapcsolatfelvételek]]/tblGoals348[[#This Row],[Negyedéves kapcsolattartási cél]],\"\")","v":{"v":0.6,"d":"60%"}},null,"0% - 25%\n26% - 50%\n51% - 75%\n76% - 100%\n\nA szín módosul az elért százalékos érték alapján"]
[{"$nulls":3},{"$f":"IF(tblGoals348[[#This Row],[Negyedéves kapcsolattartási cél]]>0,tblGoals348[[#This Row],[Tényleges elvégzett negyedéves kapcsolatfelvételek]]/tblGoals348[[#This Row],[Negyedéves kapcsolattartási cél]],\"\")","v":""}]
[{"$nulls":3},{"$f":"IF(tblGoals348[[#This Row],[Negyedéves kapcsolattartási cél]]>0,tblGoals348[[#This Row],[Tényleges elvégzett negyedéves kapcsolatfelvételek]]/tblGoals348[[#This Row],[Negyedéves kapcsolattartási cél]],\"\")","v":""}]
[]
["Visszajelzés az eredményre / Fejlesztésre vonatkozó megjegyzések"]
["Közel kerültünk. Próbáljon inkább ebédidőben telefonálni."]